bitfinex/quotes_BTCUSD_20250910
["timestamp","ask_amount","ask_price","bid_price","bid_amount"]
[1757492886197,0.96189368,112860.0,112850.0,0.19828]
[1757492888845,0.96189368,112860.0,112850.0,0.05]
[1757492889059,0.96189368,112860.0,112850.0,0.19828]
[1757492890494,0.96189368,112860.0,112850.0,0.14828]
[1757492890715,0.96189368,112860.0,112850.0,0.19828]
[1757492892260,0.96189368,112860.0,112850.0,0.46778]
[1757492895094,0.20383676,112860.0,112850.0,0.46974]
[1757492895308,0.1772107,112860.0,112850.0,0.47277]
[1757492895525,0.53479416,112860.0,112850.0,0.46974]
[1757492895948,0.53479416,112860.0,112850.0,0.47277]
[1757492896928,0.53479416,112860.0,112850.0,0.87277]
[1757492899948,0.53479416,112860.0,112850.0,0.86974]
[1757492902486,0.53479416,112860.0,112850.0,0.87277]
[1757492902702,0.1772107,112860.0,112850.0,1.41044945]
[1757492904206,0.1772107,112860.0,112850.0,1.05286599]
[1757492904955,0.1772107,112860.0,112850.0,0.90458599]
[1757492905273,0.1772107,112860.0,112850.0,1.05282599]
[1757492906597,0.1772107,112860.0,112850.0,0.90458599]
[1757492906801,0.53479416,112860.0,112850.0,1.05282599]
[1757492907581,0.1772107,112860.0,112850.0,1.05282599]
[1757492907833,0.53479416,112860.0,112850.0,1.05282599]
[1757492909228,0.53479416,112860.0,112850.0,1.04979599]
[1757492910849,0.53479416,112860.0,112850.0,0.90155599]
[1757492911061,0.53479416,112860.0,112850.0,1.01161599]
[1757492912247,0.53693416,112860.0,112850.0,0.72146]
[1757492912459,0.93729762,112860.0,112850.0,0.3195]
[1757492912678,0.93729762,112860.0,112850.0,0.46774]
[1757492913813,0.96392612,112860.0,112850.0,0.46774]
[1757492916103,0.96392612,112860.0,112850.0,0.19824]
[1757492916418,0.96392612,112860.0,112850.0,0.59824]
[1757492917267,0.92413612,112860.0,112850.0,0.59824]
[1757492918370,0.92413612,112860.0,112850.0,0.6002]
[1757492918371,0.92114612,112860.0,112850.0,0.6002]
[1757492918569,0.56142266,112860.0,112850.0,0.2002]
[1757492918788,0.2038392,112860.0,112850.0,0.55778346]
[1757492919200,0.2038392,112860.0,112850.0,0.2002]
[1757492921269,0.1772107,112860.0,112850.0,0.2002]
[1757492921479,0.53479416,112860.0,112850.0,0.2002]
[1757492921932,0.1772107,112860.0,112850.0,0.4697]
[1757492922494,0.1824507,112860.0,112850.0,0.4697]
[1757492924486,0.54003416,112860.0,112850.0,0.4697]
[1757492924701,0.56666067,112860.0,112850.0,0.4697]
[1757492924842,0.20907721,112860.0,112850.0,0.4697]
[1757492925394,0.20907721,112860.0,112850.0,0.46774]
[1757492925575,0.56666067,112860.0,112850.0,0.46774]
[1757492925928,0.56666067,112860.0,112850.0,0.3195]
[1757492926108,0.56666067,112860.0,112850.0,0.4677]
[1757492926109,0.60571067,112860.0,112850.0,0.4677]
[1757492926512,0.60570461,112860.0,112850.0,0.4677]
[1757492926970,0.63413723,112860.0,112850.0,0.3195]
[1757492927184,0.63413723,112860.0,112850.0,0.4677]
[1757492927396,0.59508723,112860.0,112850.0,0.4677]
[1757492927597,0.20907721,112860.0,112850.0,0.4677]
[1757492927802,0.20907721,112860.0,112850.0,0.46975]
[1757492928004,0.20907721,112860.0,112850.0,0.20025]
[1757492929710,0.20907721,112860.0,112850.0,0.60025]
[1757492930786,0.20383721,112860.0,112850.0,0.98626002]
[1757492930983,0.1772107,112860.0,112850.0,1.07805002]
[1757492932156,0.1772107,112860.0,112850.0,0.69204]
[1757492932366,0.1772107,112860.0,112850.0,1.07805002]
[1757492933799,0.1772107,112860.0,112850.0,1.34755002]
[1757492935000,0.1772107,112860.0,112850.0,1.43946601]
[1757492935660,0.1772107,112860.0,112850.0,1.05045599]
[1757492935847,0.1772107,112860.0,112850.0,1.43946601]
[1757492936053,0.1772107,112860.0,112850.0,0.90225599]
[1757492936203,0.1772107,112860.0,112850.0,1.05045599]
[1757492937113,0.1772107,112860.0,112850.0,0.86346599]
[1757492937317,0.56846072,112860.0,112850.0,0.7195]
[1757492937567,0.56846072,112860.0,112850.0,0.8677]
[1757492938126,0.1824507,112860.0,112850.0,0.8677]
[1757492939897,0.20907757,112860.0,112850.0,0.8677]
[1757492940963,0.20907757,112860.0,112850.0,0.7195]
[1757492941136,0.20907757,112860.0,112850.0,0.86766]
[1757492941551,0.59508759,112860.0,112850.0,0.3195]
[1757492941854,0.20907757,112860.0,112850.0,0.46766]
[1757492942627,0.20907757,112860.0,112850.0,0.3195]
[1757492942845,0.20907757,112860.0,112850.0,0.46766]
[1757492943591,0.59508759,112860.0,112850.0,0.2695]
[1757492943799,0.1772264,112850.0,112840.0,0.51858193]
[1757492943991,0.1824664,112850.0,112840.0,0.66674193]
[1757492944191,0.1824664,112850.0,112840.0,0.66879193]
[1757492944769,0.20909501,112850.0,112840.0,0.66879193]
[1757492945633,0.20909501,112850.0,112840.0,0.66979193]
[1757492945836,0.20909501,112850.0,112840.0,0.60121]
[1757492946074,0.20909501,112850.0,112840.0,0.58875592]
[1757492946587,0.20909501,112850.0,112840.0,0.58975592]
[1757492949129,0.20909501,112850.0,112840.0,0.27033]
[1757492949600,0.20909501,112850.0,112840.0,0.67033]
[1757492950457,0.20385501,112850.0,112840.0,0.67033]
[1757492951115,0.20889501,112850.0,112840.0,0.67033]
[1757492952691,0.20889501,112850.0,112840.0,0.27033]
[1757492953109,0.20889501,112850.0,112840.0,0.67033]
[1757492954380,0.20889501,112850.0,112840.0,0.66828]
[1757492954594,0.20889501,112850.0,112840.0,0.93778]
[1757492956515,0.20889501,112850.0,112840.0,0.78962]
[1757492956711,0.20889501,112850.0,112840.0,0.93778]
[1757492956917,0.20889501,112850.0,112840.0,0.93989]
[1757492957148,0.20889501,112850.0,112840.0,0.93778]
[1757492957689,0.20889501,112850.0,112840.0,0.78962]
[1757492957886,0.20889501,112850.0,112840.0,0.93778]
[1757492958455,0.59490503,112850.0,112840.0,0.3215]
[1757492958676,0.59490503,112850.0,112840.0,0.20016]
[1757492958677,0.97297503,112850.0,112840.0,0.20016]
[1757492959248,0.97297503,112850.0,112840.0,0.052]
[1757492959466,0.97297503,112850.0,112840.0,0.19916]
[1757492960478,0.97297503,112850.0,112840.0,0.19816]
[1757492960879,0.97497503,112850.0,112840.0,0.19816]
[1757492962364,0.97497503,112850.0,112840.0,0.14816]
[1757492962575,0.97597503,112850.0,112840.0,0.19816]
[1757492965826,0.97597503,112850.0,112840.0,0.14816]
[1757492966048,0.97597503,112850.0,112840.0,0.19816]
[1757492966236,0.17724211,112840.0,112820.0,0.33762]
[1757492966503,0.56522784,112830.0,112820.0,0.11812]
[1757492966724,0.90830784,112830.0,112820.0,0.11812]
[1757492966938,0.94637784,112830.0,112820.0,0.26628]
[1757492967127,0.97301369,112830.0,112820.0,0.26628]
[1757492967267,0.97301369,112830.0,112820.0,0.26624]
[1757492969510,0.97301369,112830.0,112820.0,0.11912]
[1757492969885,0.97301369,112830.0,112820.0,0.26728]
[1757492970285,0.97301369,112830.0,112820.0,0.26628]
[1757492971610,0.97301369,112830.0,112820.0,0.11812]
[1757492971811,0.99461905,112830.0,112820.0,0.05]
[1757492972078,0.99461905,112830.0,112820.0,0.19816]
[1757492972280,0.99461905,112830.0,112820.0,0.05]
[1757492972501,0.99461905,112830.0,112820.0,0.19816]
[1757492972725,0.99461905,112830.0,112820.0,0.05]
[1757492973126,0.99461905,112830.0,112820.0,0.19816]
[1757492973770,0.99461905,112830.0,112820.0,0.05]
[1757492973958,0.99461905,112830.0,112820.0,0.19816]
[1757492974281,0.99461905,112830.0,112820.0,0.05]
[1757492974482,0.17727353,112820.0,112810.0,0.05]
[1757492974689,0.56832355,112820.0,112810.0,0.05]
[1757492974902,0.56832355,112820.0,112800.0,0.78762]
[1757492974903,0.17728924,112810.0,112800.0,0.73762]
[1757492975109,0.17924924,112810.0,112800.0,0.73762]
[1757492975329,0.18232924,112810.0,112800.0,0.93789]
[1757492975745,0.20392748,112810.0,112800.0,0.93789]
[1757492976163,0.20392748,112810.0,112800.0,0.93802893]
[1757492977092,0.17728924,112810.0,112800.0,0.93802893]
[1757492977326,0.17728924,112810.0,112800.0,0.94105893]
[1757492977880,0.17728924,112810.0,112800.0,0.93802893]
[1757492978080,0.17728924,112810.0,112800.0,0.94105893]
[1757492978488,0.17728924,112810.0,112800.0,0.93802893]
[1757492980495,0.17728924,112810.0,112800.0,0.88802893]
[1757492980708,0.17728924,112810.0,112800.0,0.93802893]
[1757492981116,0.17728924,112810.0,112800.0,0.94099893]
[1757492981536,0.20391177,112820.0,112800.0,2.3280486]
[1757492981748,0.20391177,112820.0,112810.0,0.57792601]
[1757492981985,0.02663824,112820.0,112810.0,0.79652525]
[1757492982203,0.02663824,112820.0,112810.0,1.09328183]
[1757492982426,0.17725998,112830.0,112810.0,1.49328183]
[1757492982668,0.17725998,112830.0,112820.0,0.62544002]
[1757492982896,0.17725998,112830.0,112820.0,0.71735601]
[1757492983122,0.56855,112830.0,112820.0,0.14812]
[1757492983341,0.17727353,112820.0,112810.0,0.3195]
[1757492983582,0.17727353,112820.0,112810.0,0.56366599]
[1757492983775,0.17727353,112820.0,112810.0,0.61366599]
[1757492984004,0.17727353,112820.0,112810.0,0.61166599]
[1757492984657,0.17727353,112820.0,112810.0,1.01166599]
[1757492985585,0.17727353,112820.0,112810.0,1.01366599]
[1757492985905,0.17727353,112820.0,112810.0,0.86554599]
[1757492986128,0.17727353,112820.0,112810.0,0.87175]
[1757492986336,0.17727353,112820.0,112810.0,0.87375]
[1757492990186,0.17727353,112820.0,112810.0,0.47375]
[1757492990390,0.17727353,112820.0,112810.0,0.47672]
[1757492990609,0.17727353,112820.0,112810.0,0.97637961]
[1757492990812,0.17727353,112820.0,112810.0,1.41471961]
[1757492991269,0.17727353,112820.0,112810.0,1.01471961]
[1757492991787,0.20389377,112830.0,112810.0,1.41471961]
[1757492991985,0.20389377,112830.0,112820.0,0.59096961]
[1757492992375,0.20389377,112830.0,112820.0,0.23535599]
[1757492992578,0.20389377,112830.0,112820.0,0.63238599]
[1757492992773,0.20389377,112830.0,112820.0,0.59404599]
[1757492993162,0.20389377,112830.0,112820.0,0.86354599]
[1757492993567,0.56163739,112830.0,112820.0,0.86354599]
[1757492993797,0.56163739,112830.0,112820.0,0.72363]
[1757492994111,0.56691739,112830.0,112820.0,0.87175]
[1757492995097,0.56691739,112830.0,112820.0,0.92175]
[1757492996684,0.56691739,112830.0,112820.0,0.46962]
[1757492996887,0.56691739,112830.0,112820.0,0.3215]
[1757492997017,0.56691739,112830.0,112820.0,0.46962]
[1757492998488,0.56691739,112830.0,112820.0,0.41962]
[1757492999125,0.56691739,112830.0,112820.0,0.2715]
[1757492999567,0.5402836,112830.0,112820.0,0.46958]
[1757493000574,0.18253998,112830.0,112820.0,0.46958]
[1757493000789,0.5402836,112830.0,112820.0,0.46958]
[1757493001214,0.9188936,112830.0,112820.0,0.3215]
[1757493001443,0.9188936,112830.0,112820.0,0.46958]
[1757493001624,1.36855321,112830.0,112820.0,0.2715]
[1757493001875,1.39519027,112830.0,112820.0,0.2715]
[1757493002288,1.39519027,112830.0,112820.0,0.2695]
[1757493002757,0.17728924,112810.0,112800.0,0.06825893]
[1757493002960,0.54031286,112810.0,112800.0,0.21633893]
[1757493003346,0.54031286,112810.0,112800.0,0.26633893]
[1757493005086,0.54031286,112810.0,112800.0,0.26733893]
[1757493005261,0.18256924,112810.0,112800.0,0.26833893]
[1757493005582,0.54031286,112810.0,112800.0,0.20021893]
[1757493006397,0.54031286,112810.0,112800.0,0.19921893]
[1757493007391,0.54031286,112810.0,112800.0,0.19821893]
[1757493008493,0.54031286,112810.0,112800.0,0.20021893]
[1757493010603,0.53503286,112810.0,112800.0,0.20234893]
[1757493011024,0.17728924,112810.0,112800.0,0.20234893]
[1757493011442,0.53503286,112810.0,112800.0,0.20234893]
[1757493012340,0.17728924,112810.0,112800.0,0.20234893]
[1757493012629,0.17728924,112810.0,112800.0,0.65169255]
[1757493012777,0.17728924,112810.0,112800.0,0.29394893]
[1757493012980,0.17728924,112810.0,112800.0,0.69097893]
[1757493013189,0.17728924,112810.0,112800.0,0.65234893]
[1757493013790,0.17728924,112810.0,112800.0,0.69394893]
[1757493014309,0.17728924,112810.0,112800.0,1.05169255]
[1757493015369,0.17728924,112810.0,112800.0,0.69394893]
[1757493015513,0.17728924,112810.0,112800.0,0.69097893]
[1757493016284,0.17728924,112810.0,112800.0,0.54289893]
[1757493016507,0.53503286,112810.0,112800.0,0.65234893]
[1757493016965,0.53503286,112810.0,112800.0,0.92184893]
[1757493017335,0.17728924,112810.0,112800.0,0.92184893]
[1757493017471,0.53503286,112810.0,112800.0,0.77376893]
[1757493017904,0.17728924,112810.0,112800.0,0.96344893]
[1757493021217,0.53503286,112810.0,112800.0,0.96047893]
[1757493021424,0.53503286,112810.0,112800.0,0.92184893]
[1757493021859,0.5351173,112810.0,112800.0,0.92184893]
[1757493023815,0.5351173,112810.0,112800.0,1.42184893]
[1757493024022,0.17728924,112810.0,112800.0,1.42184893]
[1757493024364,0.5351173,112810.0,112800.0,1.42184893]
[1757493026413,0.5351173,112810.0,112800.0,1.02176893]
[1757493026791,0.5351173,112810.0,112800.0,1.42176893]
[1757493028539,0.17728924,112810.0,112800.0,1.42176893]
[1757493030353,0.17728924,112810.0,112800.0,1.27368893]
[1757493030564,0.18234924,112810.0,112800.0,1.42176893]
[1757493031475,0.18234924,112810.0,112800.0,1.27368893]
[1757493031633,0.18234924,112810.0,112800.0,1.42172893]
[1757493032005,0.5401773,112810.0,112800.0,1.42172893]
[1757493032214,0.89800536,112810.0,112800.0,0.77163893]
[1757493032421,0.95475007,112810.0,112800.0,0.91967893]
[1757493032827,0.95475007,112810.0,112800.0,0.77163893]
[1757493033011,0.98139101,112810.0,112800.0,0.91967893]
[1757493033250,0.98139101,112810.0,112800.0,0.91867893]
[1757493033660,0.98339101,112810.0,112800.0,0.96767893]
[1757493033865,0.98339101,112810.0,112800.0,0.91767893]
[1757493034099,0.98339101,112810.0,112800.0,0.96767893]
[1757493034304,1.32339101,112810.0,112800.0,0.96767893]
[1757493034684,1.32439101,112810.0,112800.0,0.69817893]
[1757493034883,0.90981824,112810.0,112800.0,0.69817893]
[1757493035854,0.52028924,112810.0,112800.0,0.70022893]
[1757493036077,0.52534924,112810.0,112800.0,0.69817893]
[1757493036278,0.8831773,112810.0,112800.0,0.69817893]
[1757493037310,0.8831773,112810.0,112800.0,0.55013893]
[1757493037508,0.8831773,112810.0,112800.0,0.69817893]
[1757493037715,0.9208973,112810.0,112800.0,0.69817893]
[1757493037909,0.8831773,112810.0,112800.0,0.70022893]
[1757493038551,0.8781173,112810.0,112800.0,0.70022893]
[1757493039197,0.8781173,112810.0,112800.0,0.55218893]
[1757493039370,0.8781173,112810.0,112800.0,0.70022893]
[1757493039727,0.52028924,112810.0,112800.0,0.75319893]
[1757493039932,0.18028924,112810.0,112800.0,0.75319893]
[1757493040156,0.18028924,112810.0,112800.0,1.14965699]
[1757493040319,0.18028924,112810.0,112800.0,0.79182893]
[1757493040575,0.18028924,112810.0,112800.0,1.06132893]
[1757493041298,0.17928924,112810.0,112800.0,1.06132893]
[1757493041727,0.17928924,112810.0,112800.0,1.41915699]
[1757493041942,0.2039267,112820.0,112800.0,1.86890104]
[1757493042141,0.2039267,112820.0,112810.0,0.71408806]
[1757493042349,0.17728694,112820.0,112810.0,0.71408806]
[1757493042520,0.17728694,112820.0,112810.0,0.71618806]
[1757493042900,0.17728694,112820.0,112810.0,0.35836]
[1757493043134,0.17728694,112820.0,112810.0,0.80810405]
[1757493043370,0.17728694,112820.0,112810.0,1.20810405]
[1757493043543,0.17928694,112820.0,112810.0,1.20810405]
[1757493043709,0.18028694,112820.0,112810.0,1.20810405]
[1757493044322,0.17928694,112820.0,112810.0,1.20810405]
[1757493044730,0.18028694,112820.0,112810.0,1.20810405]
[1757493045279,0.17928694,112820.0,112810.0,1.20810405]
[1757493046006,0.17728694,112820.0,112810.0,1.20810405]
[1757493046505,0.17928694,112820.0,112810.0,1.20810405]
[1757493046807,0.17728694,112820.0,112810.0,1.20810405]
[1757493048352,0.17728694,112820.0,112810.0,0.85027599]
[1757493048551,0.17728694,112820.0,112810.0,1.20796508]
[1757493048707,0.17728694,112820.0,112810.0,0.85027599]
[1757493052491,0.17728694,112820.0,112810.0,1.11977599]
[1757493059128,0.17728694,112820.0,112810.0,1.53104471]
[1757493059333,0.17728694,112820.0,112810.0,1.26154471]
[1757493060376,0.17728694,112820.0,112810.0,1.43883395]
[1757493060847,0.17728694,112820.0,112810.0,1.26154471]
[1757493061050,0.17728694,112820.0,112810.0,1.26554471]
[1757493061612,0.17728694,112820.0,112810.0,1.11750471]
[1757493061813,0.17728694,112820.0,112810.0,1.26546471]
[1757493062241,0.17728694,112820.0,112810.0,1.44275395]
[1757493062447,0.17728694,112820.0,112810.0,1.44375395]
[1757493064282,0.17728694,112820.0,112810.0,1.71325395]
[1757493064664,0.21275541,112830.0,112820.0,0.05]
[1757493064873,0.21275541,112830.0,112820.0,0.67823404]
[1757493065078,0.21275541,112830.0,112820.0,0.76817813]
[1757493065282,0.21275541,112830.0,112820.0,0.78203599]
[1757493067017,0.21275541,112830.0,112820.0,0.78503599]
[1757493068358,0.21275541,112830.0,112820.0,0.38503599]
[1757493068979,0.21275541,112830.0,112820.0,0.78503599]
[1757493070170,0.21275541,112830.0,112820.0,1.05453599]
[1757493072797,1.75596066,112830.0,112820.0,0.7725]
[1757493072980,1.75596066,112830.0,112820.0,0.2725]
[1757493072981,1.78083849,112830.0,112820.0,0.2725]
[1757493073248,1.80747167,112830.0,112820.0,0.3225]
[1757493073482,1.80747167,112830.0,112820.0,0.2725]
[1757493073685,1.80747167,112830.0,112820.0,0.42214]
[1757493074096,1.78259384,112830.0,112820.0,0.42214]
[1757493074304,1.78259384,112830.0,112820.0,0.47214]
[1757493075119,1.78259384,112830.0,112820.0,0.42214]
[1757493075334,1.78259384,112830.0,112820.0,0.47214]
[1757493075922,0.94392819,112830.0,112820.0,0.47214]
[1757493076305,0.94392819,112830.0,112820.0,0.20264]
[1757493084227,0.94392819,112830.0,112820.0,0.20476]
[1757493087011,0.21275605,112830.0,112820.0,0.29561]
[1757493087215,0.21275605,112830.0,112820.0,0.053]
[1757493087216,0.60392819,112830.0,112820.0,0.053]
[1757493087416,0.63941819,112830.0,112820.0,0.2024]
[1757493087640,1.44259384,112830.0,112820.0,0.6024]
[1757493087969,0.63941819,112830.0,112820.0,0.6024]
[1757493088323,0.63941819,112830.0,112820.0,0.2024]
[1757493088548,1.44259384,112830.0,112820.0,0.2024]
[1757493089450,0.63941819,112830.0,112820.0,0.2024]
[1757493089659,0.63941819,112830.0,112820.0,0.1524]
[1757493089865,0.63941819,112830.0,112820.0,0.2024]
[1757493090298,0.21778605,112830.0,112820.0,0.2024]
[1757493090498,0.60392819,112830.0,112820.0,0.2024]
[1757493099266,0.60392819,112830.0,112820.0,0.053]
[1757493099494,0.60392819,112830.0,112820.0,0.20216]
[1757493108086,0.60392819,112830.0,112820.0,0.053]
[1757493108299,0.60392819,112830.0,112820.0,0.20196]
[1757493110563,0.60401964,112830.0,112820.0,0.20196]
[1757493111209,0.57555965,112830.0,112820.0,0.20196]
[1757493111407,0.21778605,112830.0,112820.0,0.20196]
[1757493111837,0.21778605,112830.0,112820.0,0.053]
[1757493112049,0.21778605,112830.0,112820.0,0.20188]
[1757493115185,0.57555965,112830.0,112820.0,0.20188]
[1757493121110,0.57555965,112830.0,112820.0,0.20168]
[1757493121726,0.57555965,112830.0,112820.0,0.20373]
[1757493121943,0.57251965,112830.0,112820.0,0.20373]
[1757493122153,0.57547965,112830.0,112820.0,0.20168]
[1757493123686,0.57547965,112830.0,112820.0,0.053]
[1757493123917,0.57547965,112830.0,112820.0,0.20164]
[1757493124196,0.57547965,112830.0,112820.0,0.053]
[1757493124498,0.57547965,112830.0,112820.0,0.20164]
[1757493131890,0.96975325,112830.0,112820.0,0.053]
[1757493132130,0.96975325,112830.0,112820.0,0.15152]
[1757493132131,1.30975325,112830.0,112820.0,0.15152]
[1757493135665,1.45823325,112830.0,112820.0,0.15152]
[1757493137576,1.30975325,112830.0,112820.0,0.15152]
[1757493138951,1.45815325,112830.0,112820.0,0.003]
[1757493139131,1.45815325,112830.0,112820.0,0.1514]
[1757493140926,1.30975325,112830.0,112820.0,0.1514]
[1757493141688,1.45811325,112830.0,112820.0,0.003]
[1757493144759,1.66929562,112830.0,112820.0,0.003]
[1757493144969,1.66929562,112830.0,112820.0,1e-08]
[1757493144970,1.57737963,112830.0,112820.0,1e-08]
[1757493145164,1.57773963,112830.0,112820.0,1e-08]
[1757493145387,1.55038924,112830.0,112820.0,1e-08]
[1757493148792,1.6363853,112830.0,112820.0,1e-08]
[1757493148957,1.55038924,112830.0,112820.0,1e-08]
[1757493152294,0.83484204,112830.0,112820.0,1e-08]
[1757493152507,1.55038924,112830.0,112820.0,1e-08]
[1757493152927,1.40166924,112830.0,112820.0,1e-08]
[1757493153129,1.15595564,112830.0,112820.0,1e-08]
[1757493153341,1.36516924,112830.0,112820.0,1e-08]
[1757493154180,0.64962204,112830.0,112820.0,1e-08]
[1757493154393,1.36516924,112830.0,112820.0,1e-08]
[1757493154573,0.64962204,112830.0,112820.0,1e-08]
[1757493154777,1.36516924,112830.0,112820.0,1e-08]
[1757493155699,1.40166924,112830.0,112820.0,1e-08]
[1757493156301,1.55022924,112830.0,112820.0,1e-08]
[1757493164465,2.29439833,112830.0,112820.0,1e-08]
[1757493164678,2.34740274,112830.0,112820.0,1e-08]
[1757493165698,2.34840274,112830.0,112820.0,1e-08]
[1757493165935,2.44031873,112830.0,112820.0,1e-08]
[1757493166125,0.51728924,112810.0,112800.0,0.69873893]
[1757493166342,1.23283644,112810.0,112800.0,0.69873893]
[1757493166515,1.23482644,112810.0,112800.0,0.55013893]
[1757493166664,1.23797644,112810.0,112800.0,0.55013893]
[1757493166895,1.23797644,112810.0,112800.0,0.50013893]
[1757493166896,1.35653436,112810.0,112800.0,0.50013893]
[1757493167542,1.35653436,112810.0,112800.0,0.50213893]
[1757493167742,1.39296436,112810.0,112800.0,0.50213893]
[1757493168525,2.28573345,112810.0,112800.0,0.08640385]
[1757493168753,1.56962736,112810.0,112800.0,0.08640385]
[1757493169148,1.54156436,112810.0,112800.0,0.08640385]
[1757493169332,1.54256436,112810.0,112800.0,0.08440385]
[1757493169953,2.28673345,112810.0,112800.0,0.08440385]
[1757493170160,1.54256436,112810.0,112800.0,0.08440385]
[1757493170376,1.54308594,112810.0,112800.0,0.08440385]
[1757493170571,1.54304594,112810.0,112800.0,0.08440385]
[1757493170804,2.01740766,112810.0,112800.0,0.08440385]
[1757493171807,2.0564196,112810.0,112800.0,0.08440385]
[1757493172429,2.12172023,112810.0,112800.0,0.08440385]
[1757493172670,2.08470829,112810.0,112800.0,0.08440385]
[1757493173111,1.93614829,112810.0,112800.0,0.08440385]
[1757493173296,2.08466829,112810.0,112800.0,0.08440385]
[1757493174659,1.93614829,112810.0,112800.0,0.08440385]
[1757493174871,2.08466829,112810.0,112800.0,0.08440385]
[1757493177906,2.17658428,112810.0,112800.0,0.08440385]
[1757493178582,2.17658428,112810.0,112800.0,1e-08]
[1757493179762,2.20464728,112810.0,112800.0,1e-08]
[1757493180677,2.11273129,112810.0,112800.0,1e-08]
[1757493182107,2.13785787,112810.0,112800.0,1e-08]
[1757493182631,1.98933787,112810.0,112800.0,1e-08]
[1757493182837,2.13769787,112810.0,112800.0,1e-08]
[1757493183038,1.98933787,112810.0,112800.0,1e-08]
[1757493183244,2.13769787,112810.0,112800.0,1e-08]
[1757493183473,2.22685667,112810.0,112800.0,1e-08]
[1757493184547,2.07849667,112810.0,112800.0,1e-08]
[1757493184748,2.2517227,112810.0,112800.0,1e-08]
[1757493187618,2.2516827,112810.0,112800.0,1e-08]
[1757493188127,2.2236197,112810.0,112800.0,1e-08]
[1757493188544,2.2236597,112810.0,112800.0,1e-08]
[1757493189433,2.0753397,112810.0,112800.0,1e-08]
[1757493189627,2.2236597,112810.0,112800.0,1e-08]
[1757493190046,2.2517227,112810.0,112800.0,1e-08]
[1757493190471,2.1034027,112810.0,112800.0,1e-08]
[1757493190653,2.2517227,112810.0,112800.0,1e-08]
[1757493192278,2.0753397,112810.0,112800.0,1e-08]
[1757493192470,2.2236197,112810.0,112800.0,1e-08]
[1757493194437,2.12253764,112810.0,112800.0,1e-08]
[1757493194637,2.66354969,112810.0,112800.0,1e-08]
[1757493194779,2.27704628,112810.0,112800.0,1e-08]
[1757493195167,2.27704936,112810.0,112800.0,1e-08]
[1757493195819,0.17732068,112790.0,112780.0,1e-08]
[1757493195971,0.17732068,112790.0,112770.0,0.07101212]
[1757493195972,0.5173364,112780.0,112770.0,0.07101212]
[1757493196176,1.95308289,112780.0,112770.0,0.07309401]
[1757493196422,1.95308289,112780.0,112770.0,0.00248189]
[1757493196636,1.97973391,112780.0,112770.0,0.00248189]
[1757493196931,1.97662391,112780.0,112770.0,0.00248189]
[1757493197403,1.84070397,112780.0,112770.0,0.00248189]
[1757493197603,1.84070397,112780.0,112770.0,0.00348189]
[1757493197604,1.98898397,112780.0,112770.0,0.00348189]
[1757493197788,1.84070397,112780.0,112770.0,0.00348189]
[1757493197985,1.98898397,112780.0,112770.0,0.00651189]
[1757493198199,1.98898397,112780.0,112770.0,0.00348189]
[1757493198409,1.98998397,112780.0,112770.0,0.00348189]
[1757493198638,0.51735213,112770.0,112760.0,0.08498]
[1757493198852,1.94797862,112770.0,112760.0,0.08805615]
[1757493199048,1.94797862,112770.0,112760.0,0.04005615]
[1757493199294,1.94797862,112770.0,112760.0,0.09005615]
[1757493199477,2.03962324,112770.0,112760.0,0.04005615]
[1757493199713,2.03962324,112770.0,112760.0,0.09005615]
[1757493200344,0.99550016,112770.0,112760.0,0.09105615]
[1757493200555,0.93050874,112770.0,112760.0,0.09105615]
[1757493200789,0.93050874,112770.0,112760.0,0.09305615]
[1757493206731,1.73443583,112770.0,112760.0,0.05544615]
[1757493207442,1.73443583,112770.0,112760.0,0.09601615]
[1757493208626,0.54400533,112770.0,112760.0,0.09601615]
[1757493208840,1.31701215,112770.0,112760.0,0.09601615]
[1757493209272,1.31701215,112770.0,112760.0,0.00544615]
[1757493209273,1.88271583,112770.0,112760.0,0.00544615]
[1757493209500,1.88271583,112770.0,112760.0,0.05544615]
[1757493210186,1.88271583,112770.0,112760.0,0.05444615]
[1757493210407,1.88271583,112770.0,112760.0,0.00444615]
[1757493210623,1.88271583,112770.0,112760.0,0.05244615]
[1757493210861,1.88271583,112770.0,112760.0,0.05547615]
[1757493211071,1.88271583,112770.0,112760.0,0.00547615]
[1757493211321,1.88271583,112770.0,112760.0,0.09301615]
[1757493212046,1.88271583,112770.0,112760.0,0.09501615]
[1757493212274,1.73443583,112770.0,112760.0,0.09501615]
[1757493212522,1.88271583,112770.0,112760.0,0.09501615]
[1757493212749,1.88271583,112770.0,112760.0,0.09601615]
[1757493212967,1.73443583,112770.0,112760.0,0.09601615]
[1757493213183,1.88271583,112770.0,112760.0,0.09601615]
[1757493214251,1.88271583,112770.0,112760.0,0.00344615]
[1757493214252,1.97975182,112770.0,112760.0,0.00344615]
[1757493214450,2.00781482,112770.0,112760.0,0.00344615]
[1757493215446,2.00781482,112770.0,112760.0,0.00144615]
[1757493215988,1.97463182,112770.0,112760.0,0.00547615]
[1757493216423,1.97463182,112770.0,112760.0,0.00244615]
[1757493217233,1.98075182,112770.0,112760.0,0.00244615]
[1757493217434,2.00881482,112770.0,112760.0,0.00044615]
[1757493218070,2.00981482,112770.0,112760.0,0.00044615]
[1757493218487,1.86153482,112770.0,112760.0,0.00044615]
[1757493218905,2.00981482,112770.0,112760.0,0.00044615]
[1757493220388,1.86153482,112770.0,112760.0,0.00044615]
[1757493220813,2.00981482,112770.0,112760.0,0.00244615]
[1757493222156,2.00981482,112770.0,112760.0,0.00044615]
[1757493222524,2.13650081,112770.0,112760.0,0.00044615]
[1757493222731,2.04458482,112770.0,112760.0,0.00044615]
[1757493223664,2.00981482,112770.0,112760.0,0.00044615]
[1757493225017,2.04458482,112770.0,112760.0,0.00044615]
[1757493226503,2.04458482,112770.0,112740.0,0.0004]
[1757493226730,0.563887,112750.0,112740.0,0.00044621]
[1757493226941,0.712167,112750.0,112740.0,0.05044621]
[1757493227146,0.712167,112750.0,112740.0,0.05245621]
[1757493227351,0.73882181,112750.0,112740.0,0.05245621]
[1757493227592,0.59054181,112750.0,112740.0,0.05245621]
[1757493227800,0.59054181,112750.0,112740.0,0.05548621]
[1757493227801,0.73882181,112750.0,112740.0,0.05548621]
[1757493228461,0.73882181,112750.0,112740.0,0.05245621]
[1757493228674,0.73882181,112750.0,112740.0,0.05445621]
[1757493229600,1.5481089,112750.0,112740.0,0.05244621]
[1757493229816,0.74418181,112750.0,112740.0,0.05344621]
[1757493230044,1.5481089,112750.0,112740.0,0.05344621]
[1757493230717,1.5481089,112750.0,112740.0,0.05144621]
[1757493231264,1.5481089,112750.0,112740.0,0.05044621]
[1757493232535,1.5492412,112750.0,112740.0,0.05044621]
[1757493232774,0.17739932,112740.0,112730.0,0.0004]
[1757493233005,2.22014132,112740.0,112730.0,1e-08]